bitfinex/quotes_BTCUSD_20241009
["timestamp","ask_amount","ask_price","bid_price","bid_amount"]
[1728506276519,0.002768,61021.0,61020.0,1.34917333]
[1728506277894,0.002768,61021.0,61020.0,1.56982502]
[1728506278121,0.002768,61021.0,61020.0,1.39722502]
[1728506279817,0.002768,61021.0,61020.0,1.18307333]
[1728506280054,0.002768,61021.0,61020.0,1.25116733]
[1728506280539,0.002768,61021.0,61020.0,1.25316733]
[1728506280747,0.002768,61021.0,61020.0,1.24088627]
[1728506281001,0.002768,61021.0,61020.0,1.03134852]
[1728506281472,0.002768,61021.0,61020.0,1.00334852]
[1728506281690,0.085168,61021.0,61020.0,1.00334852]
[1728506283056,0.085168,61021.0,61020.0,1.02634852]
[1728506283708,0.085168,61021.0,61020.0,1.01407227]
[1728506283948,0.085168,61021.0,61020.0,0.90335247]
[1728506284198,0.085168,61021.0,61020.0,0.5652022]
[1728506284199,0.33101926,61021.0,61020.0,0.5652022]
[1728506284446,0.39715358,61021.0,61020.0,0.552922]
[1728506284675,0.163891,61016.0,61015.0,0.01227826]
[1728506284897,0.3401658,61016.0,61014.0,0.01227826]
[1728506285128,0.24762847,61015.0,61014.0,0.01227826]
[1728506285598,0.245896,61014.0,61013.0,0.001634]
[1728506285807,0.24763047,61014.0,61013.0,0.001634]
[1728506286014,0.2541292,61014.0,61013.0,0.001634]
[1728506286239,0.0902332,61014.0,61013.0,0.001634]
[1728506286462,0.08849873,61014.0,61013.0,0.165533]
[1728506290717,0.08849873,61014.0,61013.0,0.32637064]
[1728506291352,0.082,61014.0,61013.0,0.44001987]
[1728506291802,0.000768,61021.0,61013.0,0.44001987]
[1728506291803,0.000768,61021.0,61020.0,0.16388]
[1728506292254,0.000768,61021.0,61020.0,0.42971764]
[1728506292472,0.000768,61021.0,61020.0,0.45271764]
[1728506292682,0.000768,61021.0,61020.0,0.42971764]
[1728506292905,0.009768,61021.0,61020.0,0.43135364]
[1728506293128,0.019768,61021.0,61020.0,0.43135364]
[1728506293386,0.233368,61021.0,61020.0,0.001636]
[1728506293609,0.233368,61021.0,61020.0,0.165516]
[1728506293610,0.24078298,61021.0,61020.0,0.165516]
[1728506293821,0.24178298,61021.0,61020.0,0.165516]
[1728506294271,0.24078298,61021.0,61020.0,0.165516]
[1728506294482,0.24278298,61021.0,61020.0,0.165516]
[1728506294953,0.24178298,61021.0,61020.0,0.165516]
[1728506295809,0.23978298,61021.0,61020.0,0.165516]
[1728506296089,0.24378298,61021.0,61020.0,0.165516]
[1728506296301,0.24578298,61021.0,61020.0,0.165516]
[1728506296738,0.24378298,61021.0,61020.0,0.165516]
[1728506296961,0.24778298,61021.0,61020.0,0.165516]
[1728506297212,0.24778298,61021.0,61020.0,0.001636]
[1728506297427,0.24951745,61021.0,61020.0,0.001636]
[1728506297639,0.24778298,61021.0,61020.0,0.001636]
[1728506298091,0.41166098,61021.0,61020.0,0.001636]
[1728506299400,0.40766098,61021.0,61020.0,0.001636]
[1728506299625,0.41266098,61021.0,61020.0,0.001636]
[1728506299843,0.42066098,61021.0,61020.0,0.001636]
[1728506300275,0.41266098,61021.0,61020.0,0.001636]
[1728506300498,0.40366098,61021.0,61020.0,0.001636]
[1728506300712,0.42266098,61021.0,61020.0,0.001636]
[1728506301377,0.25878298,61021.0,61020.0,0.001636]
[1728506301603,0.10828298,61021.0,61020.0,0.32635364]
[1728506301839,0.10828298,61021.0,61020.0,0.43135364]
[1728506301840,0.019768,61021.0,61020.0,0.43135364]
[1728506302576,0.000768,61021.0,61020.0,0.43970845]
[1728506303313,0.000768,61021.0,61020.0,0.43135364]
[1728506303594,0.001768,61021.0,61020.0,0.43135364]
[1728506303834,0.002768,61021.0,61020.0,0.43135364]
[1728506304079,0.00921726,61021.0,61020.0,0.43135364]
[1728506304322,0.000768,61021.0,61020.0,0.43135364]
[1728506304567,0.00821699,61021.0,61020.0,0.43135364]
[1728506304815,0.001768,61021.0,61020.0,0.43135364]
[1728506305055,0.001768,61021.0,61020.0,0.42635364]
[1728506305288,0.001768,61021.0,61020.0,0.43135364]
[1728506305517,0.00921541,61021.0,61020.0,0.43235364]
[1728506305751,0.002768,61021.0,61020.0,0.43235364]
[1728506305976,0.00821521,61021.0,61020.0,0.43135364]
[1728506306229,0.001768,61021.0,61020.0,0.43135364]
[1728506306454,0.076868,61021.0,61020.0,0.266516]
[1728506307106,0.076868,61021.0,61020.0,0.267516]
[1728506307569,0.076868,61021.0,61020.0,0.266516]
[1728506308478,0.076868,61021.0,61020.0,0.002636]
[1728506308740,0.392046,61021.0,61020.0,0.001636]
[1728506308964,0.392046,61021.0,61020.0,0.002636]
[1728506309180,0.39850107,61021.0,61020.0,0.002636]
[1728506309649,0.39850107,61021.0,61020.0,0.001636]
[1728506309866,0.40150107,61021.0,61020.0,0.001636]
[1728506310086,0.40050107,61021.0,61020.0,0.001636]
[1728506310302,0.39850107,61021.0,61020.0,0.001636]
[1728506310730,0.40750107,61021.0,61020.0,0.001636]
[1728506310947,0.41750107,61021.0,61020.0,0.001636]
[1728506311848,0.25362307,61021.0,61020.0,0.001636]
[1728506312554,0.25362307,61021.0,61020.0,0.165516]
[1728506315274,0.25362307,61021.0,61020.0,0.001636]
[1728506315719,0.25362307,61021.0,61020.0,0.165516]
[1728506317585,0.25362307,61021.0,61020.0,0.001636]
[1728506318054,0.41750107,61021.0,61020.0,0.001636]
[1728506320556,0.25362307,61021.0,61020.0,0.001636]
[1728506320772,0.41750107,61021.0,61020.0,0.001636]
[1728506322155,0.25362307,61021.0,61020.0,0.001636]
[1728506327335,0.10232307,61021.0,61020.0,0.001636]
[1728506329522,0.26620107,61021.0,61020.0,0.001636]
[1728506329730,0.26793554,61021.0,61020.0,0.001636]
[1728506331341,0.10232307,61021.0,61020.0,0.001636]
[1728506331589,0.10232307,61021.0,61020.0,0.165516]
[1728506340616,0.24765754,61021.0,61020.0,0.001636]
[1728506340839,0.41153554,61021.0,61020.0,0.001636]
[1728506341065,0.40980107,61021.0,61020.0,0.001636]
[1728506344034,0.10232307,61021.0,61020.0,0.165516]
[1728506346079,0.10232307,61021.0,61020.0,0.001636]
[1728506347407,0.26620107,61021.0,61020.0,0.001636]
[1728506348313,0.10232307,61021.0,61020.0,0.001636]
[1728506348965,0.10232307,61021.0,61020.0,0.165516]
[1728506349188,0.10232307,61021.0,61020.0,0.001636]
[1728506349426,0.02622307,61021.0,61020.0,0.32635364]
[1728506349664,0.02622307,61021.0,61020.0,0.33865473]
[1728506349665,0.019768,61021.0,61020.0,0.33865473]
[1728506349895,0.019768,61021.0,61020.0,0.32635364]
[1728506350115,0.019768,61021.0,61020.0,0.33865463]
[1728506350332,0.000768,61021.0,61020.0,0.33865463]
[1728506350991,0.000768,61021.0,61020.0,0.46665463]
[1728506351212,0.000768,61021.0,61020.0,0.68895463]
[1728506352103,0.000768,61021.0,61020.0,1.03273357]
[1728506352354,0.000768,61021.0,61020.0,0.88354257]
[1728506352594,0.000768,61021.0,61020.0,0.73909557]
[1728506352838,0.000768,61021.0,61020.0,0.69834447]
[1728506354617,0.000768,61021.0,61020.0,0.62064447]
[1728506354829,0.000768,61021.0,61020.0,0.47604447]
[1728506355728,0.000768,61021.0,61020.0,0.45304447]
[1728506355947,0.000768,61021.0,61020.0,0.43965463]
[1728506356385,0.00724729,61021.0,61020.0,0.43965463]
[1728506356601,0.000768,61021.0,61020.0,0.43965463]
[1728506356821,0.00724729,61021.0,61020.0,0.42735364]
[1728506357042,0.000768,61021.0,61020.0,0.43235364]
[1728506357533,0.00724729,61021.0,61020.0,0.43235364]
[1728506357750,0.000768,61021.0,61020.0,0.43335364]
[1728506357966,0.00724729,61021.0,61020.0,0.43335364]
[1728506358182,0.000768,61021.0,61020.0,0.43335364]
[1728506358392,0.00724729,61021.0,61020.0,0.43335364]
[1728506358608,0.000768,61021.0,61020.0,0.43235364]
[1728506358854,0.00724729,61021.0,61020.0,0.43335364]
[1728506359066,0.000768,61021.0,61020.0,0.43235364]
[1728506359546,0.00250247,61021.0,61020.0,0.002636]
[1728506359749,0.387546,61021.0,61020.0,0.003636]
[1728506359963,0.39402529,61021.0,61020.0,0.003636]
[1728506360410,0.39402529,61021.0,61020.0,0.002636]
[1728506360657,0.39402529,61021.0,61020.0,0.258487]
[1728506360884,0.23014729,61021.0,61020.0,0.258487]
[1728506361121,0.39802529,61021.0,61020.0,0.258487]
[1728506361568,0.39802529,61021.0,61020.0,0.259487]
[1728506362242,0.39802529,61021.0,61020.0,0.258487]
[1728506362504,0.40102529,61021.0,61020.0,0.258487]
[1728506366345,0.23714729,61021.0,61020.0,0.258487]
[1728506366794,0.23714729,61021.0,61020.0,0.422367]
[1728506367235,0.09174729,61021.0,61020.0,0.422367]
[1728506375163,0.01424729,61021.0,61020.0,0.58320464]
[1728506375612,0.007768,61021.0,61020.0,0.58320464]
[1728506376260,0.003768,61021.0,61020.0,0.58320464]
[1728506376708,0.003768,61021.0,61020.0,0.58420464]
[1728506377373,0.000768,61021.0,61020.0,0.58420464]
[1728506377909,0.000768,61021.0,61020.0,0.58520464]
[1728506378345,0.000768,61021.0,61020.0,0.58420464]
[1728506378592,0.000768,61021.0,61020.0,0.58520464]
[1728506381761,0.227568,61021.0,61020.0,0.424367]
[1728506382212,0.23403417,61021.0,61020.0,0.424367]
[1728506382438,0.227568,61021.0,61020.0,0.423367]
[1728506382663,0.23403417,61021.0,61020.0,0.422367]
[1728506382897,0.23403417,61021.0,61020.0,0.424367]
[1728506383116,0.23403417,61021.0,61020.0,0.423367]
[1728506383335,0.23503417,61021.0,61020.0,0.423367]
[1728506383771,0.23403417,61021.0,61020.0,0.423367]
[1728506383999,0.23403417,61021.0,61020.0,0.422367]
[1728506384430,0.23603417,61021.0,61020.0,0.422367]
[1728506384888,0.23403417,61021.0,61020.0,0.422367]
[1728506385140,0.23803417,61021.0,61020.0,0.422367]
[1728506385399,0.23603417,61021.0,61020.0,0.422367]
[1728506385598,0.23403417,61021.0,61020.0,0.422367]
[1728506386069,0.23603417,61021.0,61020.0,0.422367]
[1728506386317,0.23803417,61021.0,61020.0,0.422367]
[1728506387710,0.23603417,61021.0,61020.0,0.422367]
[1728506388480,0.23803417,61021.0,61020.0,0.422367]
[1728506390631,0.36411087,61021.0,61020.0,0.422367]
[1728506392870,0.01123417,61021.0,61020.0,0.422367]
[1728506393364,0.004768,61021.0,61020.0,0.422367]
[1728506393585,0.01122359,61021.0,61020.0,0.422367]
[1728506393801,0.00922359,61021.0,61020.0,0.422367]
[1728506394017,0.01022359,61021.0,61020.0,0.422367]
[1728506394647,0.00922359,61021.0,61020.0,0.422367]
[1728506394862,0.00822359,61021.0,61020.0,0.422367]
[1728506395507,0.00922359,61021.0,61020.0,0.58320464]
[1728506395738,0.00822359,61021.0,61020.0,0.58320464]
[1728506396168,0.001768,61021.0,61020.0,0.59549976]
[1728506396385,0.00822542,61021.0,61020.0,0.59549976]
[1728506396599,0.00922542,61021.0,61020.0,0.59549976]
[1728506398534,0.00822542,61021.0,61020.0,0.59549976]
[1728506398744,0.00722542,61021.0,61020.0,0.59549976]
[1728506399165,0.00722542,61021.0,61020.0,0.59649976]
[1728506400006,0.00722542,61021.0,61020.0,0.59749976]
[1728506400451,0.00722542,61021.0,61020.0,0.59649976]
[1728506400699,0.21510212,61021.0,61020.0,0.43666212]
[1728506400921,0.21510212,61021.0,61020.0,0.424367]
[1728506401580,0.08902542,61021.0,61020.0,0.424367]
[1728506402035,0.08902542,61021.0,61020.0,0.43666296]
[1728506402507,0.21510212,61021.0,61020.0,0.43566296]
[1728506402721,0.21510212,61021.0,61020.0,0.424367]
[1728506402943,0.21510212,61021.0,61020.0,0.423367]
[1728506403402,0.21510212,61021.0,61020.0,0.43666336]
[1728506403616,0.21510212,61021.0,61020.0,0.424367]
[1728506406843,0.00722542,61021.0,61020.0,0.70250188]
[1728506407312,0.000768,61021.0,61020.0,0.72550118]
[1728506407745,0.000768,61021.0,61020.0,0.87730118]
[1728506407956,0.000768,61021.0,61020.0,1.00317861]
[1728506408437,0.000768,61021.0,61020.0,1.00417861]
[1728506408649,0.000768,61021.0,61020.0,0.95400118]
[1728506408863,0.001768,61021.0,61020.0,0.95500118]
[1728506409087,0.001768,61021.0,61020.0,0.95700118]
[1728506409534,0.001768,61021.0,61020.0,0.95500118]
[1728506410010,0.002768,61021.0,61020.0,0.96200118]
[1728506410227,0.24585126,61035.0,61034.0,0.005]
[1728506410455,0.24585126,61035.0,61034.0,0.45268064]
[1728506410679,0.000818,61046.0,61044.0,0.163816]
[1728506410916,0.000818,61046.0,61044.0,0.32465364]
[1728506411118,0.37192796,61045.0,61044.0,0.32465364]
[1728506411339,0.1260767,61045.0,61044.0,0.32465364]
[1728506412021,0.1260767,61045.0,61044.0,0.32565364]
[1728506412454,0.000818,61046.0,61044.0,0.16183764]
[1728506412678,0.000818,61046.0,61045.0,0.163813]
[1728506413402,0.000818,61046.0,61045.0,0.164013]
[1728506414100,0.001818,61046.0,61045.0,0.164013]
[1728506415145,0.002818,61046.0,61045.0,0.164013]
[1728506415358,0.001818,61046.0,61045.0,0.164013]
[1728506420435,0.002818,61046.0,61045.0,0.164013]
[1728506420853,0.001818,61046.0,61045.0,0.164013]
[1728506421268,0.003818,61046.0,61045.0,0.164013]
[1728506421475,0.001818,61046.0,61045.0,0.164013]
[1728506421684,0.000818,61046.0,61045.0,0.164013]
[1728506421890,0.005818,61046.0,61045.0,0.164013]
[1728506424642,0.002818,61046.0,61045.0,0.164013]
[1728506424851,0.000818,61046.0,61045.0,0.164013]
[1728506425064,0.003818,61046.0,61045.0,0.164013]
[1728506427776,0.000818,61046.0,61045.0,0.164013]
[1728506428029,0.001818,61046.0,61045.0,0.164013]
[1728506429027,0.000818,61046.0,61045.0,0.164013]
[1728506429259,0.001818,61046.0,61045.0,0.164013]
[1728506429480,0.000818,61046.0,61045.0,0.164013]
[1728506429711,0.164628,61046.0,61045.0,0.0002]
[1728506429968,0.145518,61046.0,61045.0,0.164013]
[1728506430181,0.145518,61046.0,61045.0,0.0002]
[1728506430410,0.145518,61046.0,61045.0,0.164013]
[1728506430668,0.002818,61046.0,61045.0,0.0002]
[1728506430886,0.003818,61046.0,61045.0,0.164013]
[1728506431103,0.001818,61046.0,61045.0,0.164013]
[1728506431564,0.003818,61046.0,61045.0,0.164013]
[1728506431782,0.002818,61046.0,61045.0,0.164013]
[1728506432245,0.003818,61046.0,61045.0,0.164013]
[1728506432436,0.002818,61046.0,61045.0,0.164013]
[1728506432861,0.005818,61046.0,61045.0,0.164013]
[1728506434447,0.13177918,61046.0,61045.0,0.164013]
[1728506439173,0.005818,61046.0,61045.0,0.42985064]
[1728506439396,0.005818,61046.0,61045.0,1.93416733]
[1728506439843,0.005818,61046.0,61045.0,1.96689925]
[1728506440073,0.005818,61046.0,61045.0,1.96889925]
[1728506440074,0.000818,61046.0,61045.0,1.96889925]
[1728506440563,0.001818,61046.0,61045.0,1.97889925]
[1728506441019,0.000818,61046.0,61045.0,1.96889925]
[1728506441254,0.001818,61046.0,61045.0,1.97889925]
[1728506441695,0.000818,61046.0,61045.0,1.96889925]
[1728506441947,0.001818,61046.0,61045.0,1.97789925]
[1728506442197,0.001818,61046.0,61045.0,1.97889925]
[1728506442410,0.001818,61046.0,61045.0,1.98789925]
[1728506442638,0.002818,61046.0,61045.0,2.17970424]
[1728506443297,0.001818,61046.0,61045.0,2.16970424]
[1728506443762,0.002818,61046.0,61045.0,2.17970424]
[1728506445079,0.002818,61046.0,61045.0,2.16742163]
[1728506445320,0.002818,61046.0,61045.0,2.17966175]
[1728506445763,0.002818,61046.0,61045.0,2.17966086]
[1728506448952,0.002818,61046.0,61045.0,2.16742163]
[1728506449217,0.002818,61046.0,61045.0,2.17964872]
[1728506450080,0.002818,61046.0,61045.0,2.01875872]
[1728506453490,0.002818,61046.0,61045.0,1.97756272]
[1728506453966,0.002818,61046.0,61045.0,2.47756272]
[1728506455536,0.002818,61046.0,61045.0,2.52645223]
[1728506457411,0.002818,61046.0,61045.0,1.44607223]
[1728506457637,0.002818,61046.0,61045.0,4.09446123]
[1728506457880,0.002818,61046.0,61045.0,4.06406523]
[1728506458117,0.002818,61046.0,61045.0,2.75202223]
[1728506458332,0.002818,61046.0,61045.0,2.70313272]
[1728506458969,0.002818,61046.0,61045.0,2.62783272]
[1728506461475,1e-06,61046.0,61045.0,2.62783379]
[1728506461687,1e-06,61046.0,61045.0,2.69525869]
[1728506462140,1e-06,61046.0,61045.0,2.6952635]
[1728506462984,1e-06,61046.0,61045.0,2.6767286]
[1728506463428,1e-06,61046.0,61045.0,2.67672351]
[1728506463851,1e-06,61046.0,61045.0,2.71379331]
[1728506464063,1e-06,61053.0,61052.0,0.49059899]
[1728506464294,1e-06,61053.0,61052.0,0.6636696]
[1728506464512,1e-06,61053.0,61052.0,0.59770165]
[1728506464743,1e-06,61053.0,61052.0,2.44523765]
[1728506464935,1e-06,61053.0,61052.0,2.73176665]
[1728506465599,0.001001,61053.0,61052.0,2.74076665]
[1728506466114,0.001001,61053.0,61052.0,2.75276665]
[1728506466372,0.000818,61055.0,61054.0,0.198789]
[1728506466373,1e-06,61055.0,61054.0,0.198789]
[1728506466633,1e-06,61055.0,61054.0,4.97625744]
[1728506466871,1e-06,61055.0,61054.0,4.97298261]
[1728506467122,1e-06,61055.0,61054.0,4.82889861]
[1728506467413,1e-06,61055.0,61054.0,4.80274761]
[1728506467849,1e-06,61055.0,61054.0,4.81474761]
[1728506468087,1e-06,61055.0,61054.0,4.82874761]
[1728506468331,1e-06,61055.0,61054.0,4.81474761]
[1728506468574,1e-06,61055.0,61054.0,4.82874761]
[1728506469077,1e-06,61055.0,61054.0,4.81674761]
[1728506469327,1e-06,61060.0,61059.0,0.45744304]
[1728506469594,0.21698593,61074.0,61073.0,0.298738]
[1728506469829,0.18423893,61074.0,61073.0,3.88278211]
[1728506470078,0.24585126,61081.0,61074.0,0.298735]
[1728506470341,0.24585126,61081.0,61074.0,2.4698636]
[1728506470598,1e-06,61075.0,61074.0,2.6581687]
[1728506471800,1e-06,61075.0,61074.0,2.6721687]
[1728506472503,1e-06,61075.0,61074.0,2.65993573]
[1728506472715,1e-06,61075.0,61074.0,2.6721652]
[1728506473395,1e-06,61075.0,61074.0,0.46980211]
[1728506473593,0.076701,61075.0,61074.0,0.46980211]
[1728506474507,1e-06,61075.0,61074.0,0.97046334]
[1728506474732,1e-06,61075.0,61074.0,0.9639982]
[1728506475432,1e-06,61075.0,61074.0,0.97244698]
[1728506476087,1e-06,61075.0,61074.0,0.96021751]
[1728506476359,1e-06,61075.0,61074.0,0.97243033]
[1728506477010,1e-06,61075.0,61074.0,0.97043033]
[1728506477206,1e-06,61075.0,61074.0,0.97243033]
[1728506478314,1e-06,61075.0,61074.0,0.96021751]
[1728506478524,1e-06,61075.0,61074.0,0.97242789]
[1728506479608,1e-06,61075.0,61074.0,0.99118808]
[1728506479792,1e-06,61075.0,61074.0,0.9789777]
[1728506481819,1e-06,61075.0,61074.0,0.97897572]
[1728506484911,1e-06,61075.0,61074.0,0.97697572]
[1728506485124,1e-06,61075.0,61074.0,0.77884663]
[1728506485364,1e-06,61075.0,61074.0,0.76863842]
[1728506485578,1e-06,61075.0,61074.0,0.78084836]
[1728506486002,1e-06,61075.0,61074.0,0.77884836]
[1728506487109,1e-06,61075.0,61074.0,0.76684836]
[1728506487527,1e-06,61075.0,61074.0,0.97242745]
[1728506487735,1e-06,61075.0,61074.0,0.94442745]
[1728506487947,1e-06,61075.0,61074.0,0.95842745]
[1728506488156,1e-06,61075.0,61074.0,0.97242745]
[1728506488585,1e-06,61075.0,61074.0,0.95842745]
[1728506488814,1e-06,61075.0,61074.0,0.96021751]
[1728506489027,1e-06,61075.0,61074.0,0.97243618]
[1728506489874,1e-06,61075.0,61074.0,0.70145318]
[1728506490101,1e-06,61075.0,61074.0,1.99609718]
[1728506495993,1e-06,61075.0,61074.0,1.99612548]
[1728506496477,0.082318,61083.0,61081.0,0.005]
[1728506496686,0.082318,61083.0,61081.0,3.87047142]
[1728506496687,0.000818,61083.0,61081.0,3.87047142]
[1728506496898,0.00941426,61082.0,61081.0,3.4907217]
[1728506497079,0.000817,61082.0,61081.0,3.4729607]
[1728506497534,0.000817,61082.0,61081.0,3.4799607]
[1728506497782,0.000817,61082.0,61081.0,3.4869607]
[1728506497998,0.000817,61082.0,61081.0,3.4799607]
[1728506498281,0.05892976,61087.0,61086.0,0.007]
[1728506498448,0.1506,61096.0,61091.0,0.29369]
[1728506498654,0.1506,61096.0,61091.0,2.31619307]
[1728506498866,0.1506,61096.0,61091.0,1.7708177]
[1728506499088,0.1506,61096.0,61091.0,1.1687577]
[1728506500825,0.1506,61096.0,61091.0,1.6687577]
[1728506501260,0.0808,61095.0,61091.0,1.6747577]
[1728506501483,0.076617,61095.0,61094.0,0.268682]
[1728506501732,0.076617,61095.0,61094.0,0.46803985]
[1728506501961,0.076617,61095.0,61094.0,0.46476661]
[1728506502637,0.076617,61095.0,61094.0,0.45251964]
[1728506502854,0.076617,61095.0,61094.0,0.46475994]
[1728506503270,0.076617,61095.0,61094.0,0.46675994]
[1728506504351,0.076617,61095.0,61094.0,0.46875994]
[1728506505891,0.076617,61095.0,61094.0,0.47705382]
[1728506506100,0.076617,61095.0,61094.0,0.46481352]
[1728506506315,0.076617,61095.0,61094.0,0.47705231]
[1728506510003,0.08525449,61095.0,61094.0,0.47705231]
[1728506511412,0.076617,61095.0,61094.0,0.47705231]
[1728506512438,0.076617,61095.0,61094.0,0.71148631]
[1728506512862,0.076617,61095.0,61094.0,0.69924752]
[1728506513289,0.076617,61095.0,61094.0,0.70124752]
[1728506513525,0.076617,61095.0,61094.0,0.71348426]
[1728506513775,0.0816,61100.0,61099.0,0.596004]
[1728506514033,0.0816,61100.0,61099.0,0.79207838]
[1728506514243,0.09023805,61100.0,61099.0,0.79207838]
[1728506514455,0.09023805,61100.0,61099.0,0.80431345]
[1728506515071,0.09023805,61100.0,61099.0,0.79207671]
[1728506515490,0.09223805,61100.0,61099.0,0.79207671]
[1728506515697,0.09223805,61100.0,61099.0,1.29207671]
[1728506516997,0.09223805,61100.0,61099.0,1.29407671]
[1728506517207,0.09023805,61100.0,61099.0,1.29207671]
[1728506517644,0.09023805,61100.0,61099.0,1.29807671]
[1728506522513,0.09023805,61100.0,61099.0,1.2980809]
[1728506526189,0.09023805,61100.0,61099.0,1.29809534]
[1728506527326,0.0816,61100.0,61099.0,1.29809534]
[1728506527883,0.0816,61100.0,61099.0,0.79809534]
[1728506531040,0.00255247,61107.0,61104.0,0.168655]
[1728506531041,0.0919441,61105.0,61104.0,0.168655]
[1728506531196,0.0919441,61105.0,61104.0,0.46801917]
[1728506531406,0.0919441,61105.0,61104.0,0.46474634]
[1728506532459,0.0160441,61105.0,61104.0,0.46474634]
[1728506533345,0.0180441,61105.0,61104.0,0.46974634]
[1728506533565,0.0160441,61105.0,61104.0,0.46974634]
[1728506533769,0.0160441,61105.0,61104.0,0.47474634]
[1728506535054,0.156,61113.0,61112.0,0.005]
[1728506535308,0.1477,61118.0,61116.0,0.163623]
[1728506535515,0.1477,61118.0,61116.0,0.45971434]
[1728506536098,0.1477,61118.0,61116.0,0.46471434]
[1728506536309,0.1477,61118.0,61116.0,0.45246064]
[1728506536541,0.1477,61118.0,61116.0,0.46470167]
[1728506537096,0.1477,61118.0,61116.0,0.46770167]
[1728506537503,0.1477,61123.0,61116.0,0.46470167]
[1728506537706,0.1477,61123.0,61116.0,0.47270167]
[1728506537925,0.1477,61123.0,61116.0,0.47870167]
[1728506538106,0.0808,61122.0,61116.0,0.47870167]
[1728506538550,0.0808,61122.0,61116.0,0.47270167]
[1728506538722,0.0808,61122.0,61116.0,0.48070167]
[1728506539146,0.0808,61122.0,61116.0,0.47270167]
[1728506539738,0.0808,61122.0,61116.0,0.46846064]
[1728506539928,0.0808,61122.0,61116.0,0.48068623]
[1728506540381,0.0808,61122.0,61116.0,0.47268623]
[1728506540759,0.0808,61122.0,61116.0,0.47246064]
[1728506540973,0.0808,61122.0,61116.0,0.46468407]
[1728506541150,0.0808,61122.0,61116.0,0.48507737]
[1728506541348,0.0808,61122.0,61116.0,0.49607737]
[1728506541765,0.0808,61122.0,61116.0,0.48507737]
[1728506542174,0.0808,61122.0,61116.0,0.49607737]
[1728506546355,0.0808,61122.0,61116.0,0.48385394]
[1728506546575,0.0808,61122.0,61116.0,0.49606957]
[1728506547315,0.0808,61122.0,61116.0,0.47306957]
[1728506547727,0.0808,61122.0,61116.0,0.46085394]
[1728506548727,0.0808,61122.0,61116.0,0.48385394]
[1728506548945,0.08253447,61122.0,61116.0,0.48385394]
[1728506549159,0.225418,61117.0,61116.0,0.45246064]
[1728506549583,0.225418,61117.0,61116.0,0.44746064]
[1728506549584,0.23414773,61117.0,61116.0,0.44746064]
[1728506550016,0.23414773,61117.0,61116.0,0.43546064]
[1728506550269,0.34632682,61117.0,61114.0,0.00854732]
[1728506550494,0.34632682,61117.0,61115.0,0.1]
[1728506550495,0.22633447,61116.0,61115.0,0.1]
[1728506550702,0.2246,61110.0,61108.0,0.24585126]
[1728506550875,0.2246,61110.0,61109.0,0.32611364]
[1728506551093,0.22633447,61110.0,61109.0,0.32611364]
[1728506551231,0.22633447,61110.0,61109.0,0.001634]
[1728506551443,0.2333228,61110.0,61109.0,0.165276]
[1728506551977,0.2333228,61110.0,61109.0,0.265276]
[1728506552212,0.2333228,61110.0,61109.0,0.270276]
[1728506552940,0.23505727,61110.0,61109.0,0.270276]
[1728506553430,0.23505727,61110.0,61109.0,0.001634]
[1728506553849,0.2333228,61110.0,61109.0,0.266276]
[1728506556208,0.2246,61110.0,61109.0,0.42711364]
[1728506557595,0.23330651,61110.0,61109.0,0.42711364]
[1728506558109,0.23330651,61110.0,61109.0,0.42611364]
[1728506558518,0.2246,61110.0,61109.0,0.42611364]
[1728506559180,0.0794,61110.0,61109.0,0.42611364]
[1728506559367,0.0787,61114.0,61112.0,0.327267]
[1728506559590,0.0787,61114.0,61113.0,0.32446864]
[1728506560442,0.08043447,61114.0,61113.0,0.32446864]
[1728506560855,0.08914164,61114.0,61113.0,0.32446864]
[1728506562088,0.0787,61114.0,61113.0,0.32446864]
[1728506562760,0.0587,61114.0,61113.0,0.32446864]
[1728506564708,0.000818,61117.0,61116.0,0.163623]
[1728506565433,0.00255247,61117.0,61116.0,0.163623]
[1728506565715,0.00255247,61117.0,61113.0,0.26083764]
[1728506565716,0.35775356,61117.0,61113.0,0.42446864]
[1728506565966,0.35775356,61117.0,61112.0,0.02]
[1728506565967,0.2316,61114.0,61112.0,0.183632]
[1728506566208,0.2316,61114.0,61112.0,0.34446964]
[1728506566209,0.00173447,61113.0,61112.0,0.34446964]
[1728506567716,0.19331356,61113.0,61112.0,0.02]
[1728506567970,0.42491356,61113.0,61112.0,0.02]
[1728506568226,0.58681009,61113.0,61112.0,0.02]
[1728506571930,0.58681009,61113.0,61112.0,0.021636]
[1728506572671,0.42317909,61113.0,61112.0,0.021636]
[1728506572907,0.58681009,61113.0,61112.0,0.021636]
[1728506573147,0.42317909,61113.0,61112.0,0.021636]
[1728506573388,0.42317909,61113.0,61112.0,0.185269]
[1728506573631,0.42317909,61113.0,61112.0,0.021636]
[1728506575121,0.42317909,61113.0,61112.0,0.185269]
[1728506576544,0.2316,61113.0,61112.0,0.185269]
[1728506578039,0.000818,61114.0,61113.0,0.163631]
[1728506578257,0.000818,61114.0,61113.0,0.32446864]
[1728506579125,0.078418,61114.0,61113.0,0.32446864]
[1728506579586,0.078418,61114.0,61113.0,0.32546864]
[1728506580015,0.078418,61114.0,61113.0,0.32446864]
[1728506580231,0.078418,61114.0,61113.0,0.33673011]
[1728506580456,0.078418,61114.0,61113.0,0.33773011]
[1728506580888,0.000818,61114.0,61113.0,0.32546864]
[1728506581103,0.000818,61114.0,61113.0,0.32446864]
[1728506582041,0.000818,61114.0,61112.0,0.021636]
[1728506582098,0.000818,61114.0,61113.0,0.163631]
[1728506584421,0.12649677,61114.0,61113.0,0.163631]
[1728506584635,0.12823124,61114.0,61113.0,0.163631]
[1728506585260,0.143577,61114.0,61113.0,0.163631]
[1728506585726,0.14184253,61114.0,61113.0,0.163631]
[1728506586311,0.14184253,61114.0,61113.0,0.17589166]
[1728506586949,0.14184159,61114.0,61113.0,0.17589166]
[1728506587348,0.14184159,61114.0,61113.0,0.163631]
[1728506590185,0.12649677,61114.0,61113.0,0.163631]
[1728506590584,0.14183986,61114.0,61113.0,0.163631]
[1728506592404,0.12649677,61114.0,61113.0,0.163631]
[1728506592831,0.36049677,61114.0,61113.0,0.163631]
[1728506593286,0.37583924,61114.0,61113.0,0.163631]
[1728506593754,0.36049677,61114.0,61113.0,0.163631]
[1728506593979,0.37583903,61114.0,61113.0,0.163631]